Cogmind - Beta 12 @@@ ROGUE MODE // 2023.04.02 @ 13:01:08 Player: ZLD1 Result: Destroyed by as-50080 with Assembled Maul Performance ------------- Evolutions (0) 0 Regions Visited (2) 400 Robots Destroyed (7) 35 Value Destroyed (86) 86 Prototype IDs (3) 60 Alien Tech Used (0) 0 Bonus (0) 0 TOTAL SCORE: 581 Bonus ------- None Cogmind --------- Core Integrity 0/250 Matter 206/300 Energy 95/100 System Corruption 11% Temperature Cool (0) Movement Core (50) Location -10/Mines Parts ------- > --- POWER (1) -------- (None) > --- PROPULSION (2) --- (None) > --- UTILITY (2) ------ (None) > --- WEAPON (2) ------- (None) > --- INVENTORY (5) ---- Ion Engine Ion Engine Aluminum Leg Seismic Detector Signal Generator Peak State ------------ > --- POWER ------------ Light Ion Engine > --- PROPULSION ------- Aluminum Leg Aluminum Leg > --- UTILITY ---------- Small Storage Unit Large Battery > --- WEAPON ----------- Assault Rifle Light Assault Rifle > --- INVENTORY -------- Ion Engine Compact Wheel Compact Wheel Improved Terrain Scanner Seismic Detector Light Armor Plating EM Pulse Gun Grenade Launcher [Rating: 8] Favorites ----------- Power Light Ion Engine Engine Light Ion Engine Propulsion Aluminum Leg Leg Aluminum Leg Wheel Compact Wheel Utility Small Storage Unit Storage Small Storage Unit Weapon Light Assault Rifle Ballistic Gun Light Assault Rifle Launcher Grenade Launcher Build | -11 -10 -10 ------- Run | Jun Mat Min Slots Evolved . | . . . Power . | . . . Propulsion . | . . . Utility . | . . . Weapon . | . . . Parts Attached 10 | 6 1 3 Power 1 | 1 . . Engine 1 | 1 . . Core . | . . . Reactor . | . . . Propulsion 4 | 2 . 2 Treads . | . . . Leg 2 | 2 . . Wheel 2 | . . 2 Hover . | . . . Flight . | . . . Utility 2 | 1 1 . Device . | . . . Storage 2 | 1 1 . Processor . | . . . Hackware . | . . . Protection . | . . . Artifact . | . . . Weapon 3 | 2 . 1 Energy Gun . | . . . Energy Cannon . | . . . Ballistic Gun 2 | 2 . . Ballistic Cannon . | . . . Launcher 1 | . . 1 Special Weapon . | . . . Impact Weapon . | . . . Slashing Weapon . | . . . Piercing Weapon . | . . . Special Melee Weapon . | . . . Unidentified Prototypes . | . . . Parts Lost 10 | . . 10 Power 1 | . . 1 Propulsion 4 | . . 4 Utility 2 | . . 2 Weapon 3 | . . 3 Highest Loss Streak 10 | . . 10 To Critical Strikes . | . . . Average Slot Usage (%) 88 | . 94 77 Engine 12 | . 14 8 Leg 25 | . 28 21 Wheel 1 | . . 2 Storage 22 | . 23 21 Ballistic Gun 25 | . 28 21 Naked Turns 2 | . . 2 Heaviest Build 14 | 11 14 14 Greatest Support 32 | 20 20 32 Greatest Overweight (x) . | . . . Average Overweight (x) . | . . . Largest Inventory Capacity 8 | 8 8 8 Average Capacity 7 | 7 8 7 Most Carried 8 | 5 8 8 Average Carried 5 | 2 6 7 Final Capacity 8 | 8 8 5 Final Carried 8 | 4 8 5 Class Distribution -------------------- 100% | Mutant Dominant Class ---------------- Mutant | -10/Materials Mutant | -10/Mines Resources | -11 -10 -10 ----------- Run | Jun Mat Min Matter Collected 259 | 230 18 11 Remotely . | . . . Salvage Created 242 | 130 18 94 Parts 14 | 11 1 2 Haulers Intercepted . | . . . Recyclers Shooed . | . . . Parts Field Recycled . | . . . Retrieved Matter . | . . . Parts Self-Destructed . | . . . Prevented . | . . . Kills | -11 -10 -10 ------- Run | Jun Mat Min Combat Hostiles Destroyed 7 | . 1 6 Guns 3 | . 1 2 AOE 4 | . . 4 Classes Destroyed 5 | 2 1 2 Worker 1 | 1 . . Tunneler 4 | 4 . . Swarmer 1 | . 1 . Grunt 1 | . . 1 Assembled 5 | . . 5 Best Kill Streak 6 | 4 1 6 Combat Bots Only 6 | . 1 6 Max Kills in Single Turn 4 | 1 1 4 Gunslinging . | . . . Exploded 4 | . . 4 Melee . | . . . Uniques/NPCs Destroyed . | . . . Combat | -11 -10 -10 -------- Run | Jun Mat Min Damage Taken 1001 | . 57 944 Core 250 | . 9 241 Absorbed by Shields . | . . . Core Remaining (%) 100 | 100 . . Volleys Fired 35 | 17 4 14 Largest 2 | 2 2 2 Hottest 40 | 40 40 40 Shots Fired 59 | 34 8 17 Gun 58 | 34 8 16 Cannon . | . . . Launcher 1 | . . 1 Special . | . . . Kinetic 58 | 34 8 16 Thermal . | . . . Explosive 1 | . . 1 Electromagnetic . | . . . Robot Hit Streak 6 | 4 1 6 Robot Miss Streak 6 | 6 2 2 Penetration Max . | . . . Secondary Targets . | . . . Shots Hit Robots 26 | 13 3 10 Core Hits 24 | 8 2 14 Critical Kills . | . . . Critical Parts Destroyed . | . . . Critical Strikes . | . . . Melee Attacks . | . . . Impact . | . . . Slashing . | . . . Piercing . | . . . Sneak Attacks . | . . . Combat Hostiles . | . . . Follow-up Attacks . | . . . Damage Inflicted 429 | 165 28 236 Guns 280 | 165 28 87 Cannons . | . . . Explosions 143 | . . 143 Melee . | . . . Ramming 6 | . . 6 Kinetic 280 | 165 28 87 Thermal . | . . . Explosive 143 | . . 143 Electromagnetic . | . . . Impact . | . . . Slashing . | . . . Piercing . | . . . Highest Corruption 7 | . . 7 Average Corruption 4 | . . 4 Corruption Purged . | . . . Corruption Blocked . | . . . Effects 1 | . . 1 Alerts 1 | . . 1 Overload Shots . | . . . Overflow Damage . | . . . Projectiles . | . . . Explosions . | . . . Melee . | . . . Knockbacks . | . . . Impact . | . . . Kinetic . | . . . Secondary . | . . . Self-Inflicted Damage 44 | . . 44 Shots 1 | . . 1 Rammed 3 | . . 3 Targets Rammed 3 | . . 3 Kicked . | . . . Crushed . | . . . Highest Temperature 10 | . . 10 Average Temperature 4 | . . 4 Received Heat Transfer 219 | . 9 210 Siege Activations . | . . . Robots Corrupted . | . . . Combat Hostiles . | . . . Parts Fried . | . . . Impact Corruptions . | . . . Robots Melted . | . . . Combat Hostiles . | . . . Parts Melted . | . . . Heat Transferred . | . . . Parts Sabotaged . | . . . Parts Stolen . | . . . Parts Stripped . | . . . Power Chain Reactions . | . . . Missiles Intercepted . | . . . Alert | -11 -10 -10 ------- Run | Jun Mat Min Peak Influence 76 | 25 76 38 Initial 29 | . 16 29 Average 24 | 6 44 19 Maximum Alert Level . | . . . Low Security (%) 100 | 100 100 100 Level 1 . | . . . Level 2 . | . . . Level 3 . | . . . Level 4 . | . . . Level 5 . | . . . High Security . | . . . Max Security . | . . . Squads Dispatched . | . . . Investigation . | . . . Extermination . | . . . Reinforcement . | . . . Assault . | . . . Garrison . | . . . Intercept . | . . . Searches Triggered . | . . . Construction Impeded . | . . . Haulers Reinforced . | . . . Active Scanning Responses . | . . . Cargo Convoy Interrupts . | . . . Stealth | -11 -10 -10 --------- Run | Jun Mat Min Distress Signals . | . . . Communications Jammed . | . . . Distress Signals . | . . . Times Spotted 33 | . 8 25 Peak Tracking Total 22 | . 4 22 Tactical Retreats 2 | . . 2 Traps | -11 -10 -10 ------- Run | Jun Mat Min Traps Triggered . | . . . Indirectly . | . . . Trap Hack Attempts . | . . . Triggered . | . . . Disarmed . | . . . Reprogrammed . | . . . Reused . | . . . Traps Extracted . | . . . Installed . | . . . Triggered . | . . . Machines | -11 -10 -10 ---------- Run | Jun Mat Min Machines Disabled . | . . . Max in Single Turn . | . . . Machines Repaired . | . . . Machines Sabotaged . | . . . Overloaded Fab Kills . | . . . Hacking | -11 -10 -10 --------- Run | Jun Mat Min Machines Accessed 2 | . 2 . Terminals 2 | . 2 . Fabricators . | . . . Repair Stations . | . . . Recycling Units . | . . . Scanalyzers . | . . . Garrison Access . | . . . Total Hacks 4 | . 4 . Successful 3 | . 3 . Failed 1 | . 1 . Catastrophic 1 | . 1 . Database Lockouts . | . . . Manual . | . . . Terminals 4 | . 4 . Fabricators . | . . . Repair Stations . | . . . Recycling Units . | . . . Scanalyzers . | . . . Garrison Access . | . . . Terminal Hacks 3 | . 3 . Record 1 | . 1 . Prototype ID Bank 2 | . 2 . Fabricator Hacks . | . . . Repair Station Hacks . | . . . Recycling Unit Hacks . | . . . Scanalyzer . | . . . Garrison Access Hacks . | . . . Unauthorized Hacks . | . . . Terminals . | . . . Fabricators . | . . . Repair Stations . | . . . Recycling Units . | . . . Scanalyzers . | . . . Garrison Access . | . . . Data Cores Recovered . | . . . Used . | . . . Hacking Detections 2 | . 2 . Full Trace Events 1 | . 1 . Feedback Events . | . . . Feedback Blocked . | . . . Robot Schematics Acquired . | . . . Robots Built . | . . . Authchips . | . . . Time . | . . . Total Robot Build Rating . | . . . Part Schematics Acquired . | . . . Parts Built . | . . . Authchips . | . . . Time . | . . . Total Part Build Rating . | . . . Parts Repaired . | . . . Time . | . . . Parts Recycled . | . . . Recycled Matter . | . . . Retrieved Matter . | . . . Retrieved Components . | . . . Parts Scanalyzed . | . . . Part Schematics Acquired . | . . . Parts Damaged . | . . . Bothacking | -11 -10 -10 ------------ Run | Jun Mat Min Used RIF Installer . | . . . Robots Hacked . | . . . Non-combat . | . . . Combat . | . . . Robot Hacks Applied . | . . . Relay Couplers Released . | . . . Fabnet Peak Effective % . | . . . Robots Rewired . | . . . Allies Hacked . | . . . Hacks Repelled . | . . . Allies | -11 -10 -10 -------- Run | Jun Mat Min Total Allies . | . . . Largest Group . | . . . Highest-Rated Group . | . . . Highest-Rated Ally . | . . . Total Orders . | . . . Ally Attacks . | . . . Total Damage . | . . . Kills . | . . . Allies Corrupted . | . . . Allies Melted . | . . . Intel | -11 -10 -10 ------- Run | Jun Mat Min Robot Analysis Total . | . . . Derelict Logs Recovered 1 | . . 1 Drone Launches . | . . . Drone Recoveries . | . . . Exploration | -11 -10 -10 ------------- Run | Jun Mat Min Turns Passed 445 | 165 171 109 Spaces Moved 256 | 91 105 60 Core 9 | 9 . . Treads . | . . . Legs 241 | 82 105 54 Wheels 6 | . . 6 Hover . | . . . Flight . | . . . Fastest Speed 50 | 50 120 100 Average Speed 117 | 113 120 118 Slowest Speed 120 | 120 120 120 Overloaded Moves . | . . . Propulsion Burnouts . | . . . Robots Hopped . | . . . Cave-ins Triggered . | . . . Exploration Rate (%) 17 | 6 29 17 Regions Visited 2 Branch Regions 1 Pre-discovered Areas . | . . . Known Exits Taken . | . . . Unknown Exits Taken 2 | 1 1 . Scrap Searched . | . . . Spaces Dug . | . . . Terrain Destroyed 8 | . . 8 Melee . | . . . Projectile . | . . . AOE 8 | . . 8 Terrain Rammed . | . . . Walls Destroyed . | . . . Machines Disabled . | . . . Actions | -11 -10 -10 --------- Run | Jun Mat Min Total 349 | 122 143 84 Wait 27 | . 27 . Move 254 | 90 104 60 Hop . | . . . Pick Up 18 | 9 6 3 Fast Attach 2 | 1 . 1 Attach 8 | 5 1 2 Detach . | . . . Swap . | . . . Drop 2 | . 1 1 Fire 35 | 17 4 14 Melee . | . . . Ram 3 | . . 3 Kick . | . . . Crush . | . . . Escape Stasis . | . . . Rewire . | . . . Trap . | . . . Miscellaneous . | . . . Route ------- -11/Junkyard -10/Materials -10/Mines History --------- Turn | Location | Event 6 | -11/Junkyard | Discovered new exit (range 15) 166 | -11/Junkyard | Entered Materials 302 | -10/Materials | Build established: Mutant 332 | -10/Materials | Discovered new exit (range 5) 337 | -10/Materials | Entered Mines 338 | -10/Mines | Met a Derelict testing a Signal Generator 342 | -10/Mines | Found Signal Generator 375 | -10/Mines | Learned Materials emergency access door positions 377 | -10/Mines | Assembled infested the area 427 | -10/Mines | Core integrity fell below 50% 435 | -10/Mines | Core integrity fell below 20% 446 | -10/Mines | Destroyed by as-50080 with Assembled Maul Last Messages --------------- 00438_ K-01 Serf collects debris. 00438_ Acquired 11 matter. 00439_ Slammed into G-47 Trooper. 00441_ System corrupted: IFF burst signal emitted. 00441_ Slammed into G-47 Trooper. 00441_ Destabilizing: System corrupted (+1). 00441_ Com. Wheel destroyed. 00442_ K-01 Serf collects debris. 00442_ as-25300 sneak attacks. 00442_ K-01 Serf system corrupted by crushing effect. 00442_ K-01 Serf knocked back. 00443_ K-01 Serf system terminally corrupted. 00443_ Acquired Grenade Launcher. 00445_ as-83332 destroyed. 00445_ G-47 Trooper destroyed. 00445_ as-63634 destroyed. 00445_ as-25300 destroyed. 00446_ Grenade Launcher destroyed. 00446_ Com. Wheel destroyed. 00446_ System corrupted by crushing effect (+4). Map ----- +----------------------------------------------------+ | ???????????????????????????????????? | | ???????????????????????????????????? | | ???????????????????????????????????? | | ???????????????????????????????????? | | ???????????????????????????????????? | | ???????????????????????????????????? | | ???????????????????????????????????? | | ???????????????????????????????????? | | ???????????????????????????????????? | | ???????????????????????????????????? | | ???????????????????????????????????? | | ???????????????????????????????????? | | ???????????????????????????????????? | | ???????????????????????????????????? | | ???????????????????????????????????? | | ???????????????????????????????????? | | ?????????### ###???????????????????? | | ?????????# ##??????????????????? | | ?????????# """ T???????????????????? | | ?????????# """ #???????????????????? | | ?????????# """ #???????????????????? | | ?????????# %#???????????????????? | | ????????## " !#???????????????????? | | ????????# %####????????????????? | | ????????# %= a%a! #????????????????? | | ????????# =@a %# #????????????????? | | ????????# ## #????????????????? | | ????????######## #????????????????? | | ???????????????# #????????????????? | | ???????????????# #???????##???????? | | ????????????#### #??????? #???????? | | ????????????# #??????? ???????? | | ????????????# ## #??????? #???#???? | | ????????###?#??# #?????? ### ##### | | ????????# ????# ##????? $ | | ????????# #???## ##???? ?? | | ????????# #??## ##### #?????? | | ????????# #?## #??????? | | ????????# #?# = #??????? | | ????????# #?# ###### #??????? | | ???????## ### ##????? #??????? | | ???????# ## ##??????? #?????? | | ???????# ##???????? ????? | | ???????# #####?????????? #??? | | ???????## ##?????????????? ?? | | ????????# #???????????????? ? | | ????????# ####????????????? | | ????????# ##????????????? | | ????????# ##????????????!* | | ????????## #?????????????## | +----------------------------------------------------+ Best States ------------- Heat Dissipation 25 Energy Generation 10 Energy Capacity 325 Matter Stores 207 Matter Capacity 300 Sight Range 16 Terrain Scan Density 10 Evasion (%) 55 Item Schematics ----------------- None Robot Schematics ------------------ None Fabricated ------------ Nothing Alien Tech Used ----------------- None Achievements -------------- Hunted Challenges ------------ None Game ------ Seed GyrokineticThiefInterrupter Manual? 0 Play Time 00:07:11 Cumulative 18.2 hours Start 2023.04.02 @ 12:55:39 End 2023.04.02 @ 13:01:08 Sessions 1 Manual Loads 0 Difficulty Rogue Special Mode None Game No. 45 Rogue 45 Adventurer 0 Explorer 0 Win Type - Total 0 Types 0/0/0/0/0/0/0/0/0 Lore% 22 Gallery% 26 Achievement% 19 Wizard Run 0 Options --------- ASCII 0 Keyboard 0 Movement Mouse Keybinds 0 Fullscreen 1 Font 24/Smallcaps Map View 64x52 Tactical HUD 1 Map Filters NONE Filters NONE Steam 1 RUN: 20fe722e-ddfa-4bca-964b-385aa79207f2